[Event "Gideon Japhet ACP Open 2018"]
[Site "Jerusalem"]
[Date "2018.07.04"]
[Round "5"]
[White "Shvayger, Yuliya"]
[Black "Zlatin, Alexander"]
[Result "1-0"]
[ECO "C68"]
[WhiteElo "2409"]
[BlackElo "2205"]
[Annotator "NA"]
[PlyCount "65"]
[EventDate "2018.07.01"]
[EventType "swiss"]
[EventCountry "ISR"]
[SourceTitle "playchess.com"]
[Source "ChessBase"]
[SourceQuality "1"]
[TimeControl "40/5400+30:1800+30"]

1. e4 {[%emt 0:00:00]} e5 {[%emt 0:00:00]} 2. Nf3 {[%emt 0:00:00]} Nc6 {[%emt 0:00:00]} 3. Bb5 {[%emt 0:00:00]} a6 {[%emt 0:00:00]} 4. Bxc6 {[%emt 0:00:34]} dxc6 {[%emt 0:00:00]} 5. O-O {[%emt 0:00:28]} Qf6 {[%emt 0:01:12]} 6. d4 {[%emt 0:01:40]} exd4 {[%emt 0:00:52]} 7. Bg5 {[%emt 0:00:27]} Qd6 {[%emt 0:01:07]} 8. Nxd4 {[%emt 0:00:18]} c5 {[%emt 0:09:33]} 9. Ne2 {[%emt 0:06:28]} Qxd1 {[%emt 0:20:07]} 10. Rxd1 {[%emt 0:01:45]} Bd7 {[%emt 0:00:04]} 11. Nbc3 {[%emt 0:01:22]} Bd6 {[%emt 0:02:39]} 12. Rd2 {[%emt 0:06:03]} f6 {[%emt 0:05:52]} 13. Bf4 {[%emt 0:05:51]} Bxf4 {[%emt 0:00:44]} 14. Nxf4 {[%emt 0:00:02]} Ne7 {[%emt 0:02:49]} 15. Ncd5 {[%emt 0:07:34]} Rc8 {[%emt 0:14:41]} 16. Rad1 {[%emt 0:01:56]} Nxd5 {[%emt 0:05:31]} 17. Nxd5 {[%emt 0:03:45]} Bc6 {[%emt 0:04:29]} 18. Nxc7+ {[%emt 0:00:09]} Kf7 {[%emt 0:00:04]} 19. Nd5 {[%emt 0:00:08]} Rcd8 {[%emt 0:02:27]} 20. f3 {[%emt 0:01:00]} h5 {[%emt 0:02:36]} 21. Kf2 {[%emt 0:03:39]} Rhe8 {[%emt 0:01:31]} 22. Ne3 {[%emt 0:00:59]} Rxd2+ {[%emt 0:01:05]} 23. Rxd2 {[%emt 0:00:02]} g6 {[%emt 0:00:06]} 24. Nc4 {[%emt 0:09:29]} Ke6 {[%emt 0:00:08]} 25. h4 {[%emt 0:08:22]} Rb8 {[%emt 0:03:47]} 26. b3 {[%emt 0:02:32]} Rg8 {[%emt 0:01:55]} 27. Ke3 {[%emt 0:00:14]} Rb8 {[%emt 0:01:52]} 28. Rd6+ {[%emt 0:00:59]} Ke7 {[%emt 0:00:53]} 29. e5 {[%emt 0:00:30]} Rf8 {[%emt 0:04:48]} 30. exf6+ {[%emt 0:01:13]} Rxf6 {[%emt 0:00:05]} 31. Rxf6 {[%emt 0:00:09]} Kxf6 {[%emt 0:00:05]} 32. Na5 {[%emt 0:00:09]} Bb5 {[%emt 0:03:42]} 33. c4 {[%emt 0:01:27]} 1-0

[Event "Gideon Japhet ACP Open 2018"]
[Site "Jerusalem"]
[Date "2018.07.04"]
[Round "5"]
[White "Zilberman, Yaacov"]
[Black "Shohat, Yotam"]
[Result "1-0"]
[ECO "D91"]
[WhiteElo "2374"]
[BlackElo "2189"]
[Annotator "NA"]
[PlyCount "75"]
[EventDate "2018.07.01"]
[EventType "swiss"]
[EventCountry "ISR"]
[SourceTitle "playchess.com"]
[Source "ChessBase"]
[SourceQuality "1"]
[TimeControl "40/5400+30:1800+30"]

1. d4 {[%emt 0:00:00]} Nf6 {[%emt 0:00:00]} 2. c4 {[%emt 0:00:00]} g6 {[%emt 0:00:00]} 3. Nc3 {[%emt 0:00:00]} d5 {[%emt 0:00:00]} 4. Nf3 {[%emt 0:00:00]} Bg7 {[%emt 0:00:00]} 5. Bg5 {[%emt 0:00:41]} dxc4 {[%emt 0:00:08]} 6. e4 {[%emt 0:02:05]} c5 {[%emt 0:00:23]} 7. d5 {[%emt 0:00:11]} b5 {[%emt 0:00:57]} 8. Bxf6 {[%emt 0:00:31]} exf6 {[%emt 0:02:06]} 9. Nxb5 {[%emt 0:01:23]} Qb6 {[%emt 0:18:39]} 10. Bxc4 {[%emt 0:06:56]} a6 {[%emt 0:00:24]} 11. Nc3 {[%emt 0:00:22]} Qxb2 {[%emt 0:00:34]} 12. Rc1 {[%emt 0:18:43]} O-O {[%emt 0:15:52]} 13. O-O {[%emt 0:01:32]} Nd7 {[%emt 0:00:21]} 14. Re1 {[%emt 0:04:35]} Rd8 {[%emt 0:12:58]} 15. Na4 {[%emt 0:06:29]} Qb4 {[%emt 0:05:34]} 16. Bb3 {[%emt 0:03:38]} Bf8 {[%emt 0:02:10]} 17. Nd2 {[%emt 0:02:57]} Ne5 {[%emt 0:12:30]} 18. Nc4 {[%emt 0:03:52]} Nxc4 {[%emt 0:01:34]} 19. Rxc4 {[%emt 0:00:51]} Qa5 {[%emt 0:00:05]} 20. Qc1 {[%emt 0:04:19]} Bd7 {[%emt 0:00:28]} 21. Nxc5 {[%emt 0:03:32]} Bb5 {[%emt 0:01:23]} 22. Nb7 {[%emt 0:01:46]} Qb6 {[%emt 0:01:44]} 23. Nxd8 {[%emt 0:00:48]} Bxc4 {[%emt 0:00:06]} 24. Qxc4 {[%emt 0:01:15]} Rxd8 {[%emt 0:01:03]} 25. Rc1 {[%emt 0:00:37]} Bd6 {[%emt 0:03:27]} 26. g3 {[%emt 0:03:01]} h5 {[%emt 0:00:47]} 27. Kg2 {[%emt 0:03:25]} h4 {[%emt 0:00:49]} 28. Qa4 {[%emt 0:01:40]} h3+ {[%emt 0:02:37]} 29. Kf1 {[%emt 0:00:47]} Bc5 {[%emt 0:07:05]} 30. Rc2 {[%emt 0:02:05]} a5 {[%emt 0:04:03]} 31. Qc6 {[%emt 0:01:53]} Qxc6 {[%emt 0:00:16]} 32. dxc6 {[%emt 0:00:12]} Bb6 {[%emt 0:00:06]} 33. c7 {[%emt 0:02:53]} Rc8 {[%emt 0:00:14]} 34. Rc6 {[%emt 0:00:13]} Bd4 {[%emt 0:03:02]} 35. f4 {[%emt 0:01:06]} Kf8 {[%emt 0:00:55]} 36. Bc4 {[%emt 0:00:18]} Ke7 {[%emt 0:00:15]} 37. Ba6 {[%emt 0:00:06]} Kd7 {[%emt 0:00:12]} 38. Rc4 {[%emt 0:00:06]} 1-0

[Event "Gideon Japhet ACP Open 2018"]
[Site "Jerusalem"]
[Date "2018.07.04"]
[Round "5"]
[White "Gurbanov, Andrei"]
[Black "Milikow, Yoav"]
[Result "1/2-1/2"]
[ECO "D80"]
[WhiteElo "2335"]
[BlackElo "2161"]
[Annotator "NA"]
[PlyCount "80"]
[EventDate "2018.07.01"]
[EventType "swiss"]
[EventCountry "ISR"]
[SourceTitle "playchess.com"]
[Source "ChessBase"]
[SourceQuality "1"]
[TimeControl "40/5400+30:1800+30"]

1. d4 {[%emt 0:00:00]} Nf6 {[%emt 0:00:00]} 2. c4 {[%emt 0:00:19]} g6 {[%emt 0:00:00]} 3. Nc3 {[%emt 0:00:04]} d5 {[%emt 0:00:00]} 4. Bg5 {[%emt 0:00:05]} Bg7 {[%emt 0:01:04]} 5. Bxf6 {[%emt 0:01:02]} Bxf6 {[%emt 0:00:15]} 6. cxd5 {[%emt 0:00:27]} O-O {[%emt 0:01:50]} 7. e3 {[%emt 0:01:38]} c6 {[%emt 0:09:45]} 8. Bc4 {[%emt 0:02:34]} b5 {[%emt 0:01:38]} 9. Bb3 {[%emt 0:00:05]} b4 {[%emt 0:01:07]} 10. Ne4 {[%emt 0:00:07]} cxd5 {[%emt 0:00:37]} 11. Nxf6+ {[%emt 0:00:06]} exf6 {[%emt 0:00:06]} 12. Qf3 {[%emt 0:00:13]} Be6 {[%emt 0:07:57]} 13. Ne2 {[%emt 0:00:13]} Nc6 {[%emt 0:01:27]} 14. Nf4 {[%emt 0:00:25]} Ne7 {[%emt 0:01:09]} 15. O-O {[%emt 0:00:14]} a5 {[%emt 0:00:55]} 16. a4 {[%emt 0:00:44]} bxa3 {[%emt 0:00:36]} 17. Rxa3 {[%emt 0:00:06]} Rb8 {[%emt 0:03:07]} 18. Nd3 {[%emt 0:02:17]} Nc8 {[%emt 0:03:36]} 19. Nc5 {[%emt 0:00:39]} Nb6 {[%emt 0:00:45]} 20. Rfa1 {[%emt 0:00:31]} Nc4 {[%emt 0:16:48]} 21. Bxc4 {[%emt 0:02:33]} dxc4 {[%emt 0:04:11]} 22. Nxe6 {[%emt 0:05:01]} fxe6 {[%emt 0:00:02]} 23. Qe2 {[%emt 0:02:13]} Qb6 {[%emt 0:02:19]} 24. R1a2 {[%emt 0:02:43]} Rfc8 {[%emt 0:02:27]} 25. h4 {[%emt 0:01:19]} Qd6 {[%emt 0:09:02]} 26. Qc2 {[%emt 0:01:41]} e5 {[%emt 0:04:45]} 27. dxe5 {[%emt 0:01:15]} fxe5 {[%emt 0:00:55]} 28. Rxa5 {[%emt 0:00:22]} Qd3 {[%emt 0:00:38]} 29. Qa4 {[%emt 0:02:17]} Qb1+ {[%emt 0:01:14]} 30. Kh2 {[%emt 0:00:05]} Qe4 {[%emt 0:00:18]} 31. Kg3 {[%emt 0:01:47]} Rf8 {[%emt 0:05:22]} 32. Qd1 {[%emt 0:14:01]} Rbd8 {[%emt 0:04:20]} 33. Qc1 {[%emt 0:10:45]} g5 {[%emt 0:04:55]} 34. hxg5 {[%emt 0:02:29]} Rf5 {[%emt 0:02:30]} 35. f4 {[%emt 0:14:09]} exf4+ {[%emt 0:01:13]} 36. exf4 {[%emt 0:03:17]} Rd3+ {[%emt 0:00:23]} 37. Kh2 {[%emt 0:00:15]} Rxf4 {[%emt 0:00:24]} 38. Ra8+ {[%emt 0:01:44]} Kg7 {[%emt 0:00:34]} 39. R2a7+ {[%emt 0:00:12]} Kg6 {[%emt 0:01:14]} 40. Ra6+ {[%emt 0:06:48]} Kg7 {[%emt 0:00:57]} 1/2-1/2

[Event "Gideon Japhet ACP Open 2018"]
[Site "Jerusalem"]
[Date "2018.07.04"]
[Round "5"]
[White "Zisman, Philip"]
[Black "Steinberg, Nitzan"]
[Result "0-1"]
[ECO "B90"]
[WhiteElo "2293"]
[BlackElo "2521"]
[Annotator "ChessBase"]
[PlyCount "39"]
[EventDate "2018.07.01"]
[EventType "swiss"]
[EventCountry "ISR"]
[SourceTitle "playchess.com"]
[Source "ChessBase"]
[SourceQuality "1"]
[TimeControl "40/5400+30:1800+30"]

1. e4 {[%emt 0:00:00]} c5 {[%emt 0:00:00]} 2. Nf3 {[%emt 0:00:00]} d6 {[%emt 0:00:03]} 3. d4 {[%emt 0:00:00]} cxd4 {[%emt 0:00:04]} 4. Nxd4 {[%emt 0:00:00]} Nf6 {[%emt 0:00:04]} 5. Nc3 {[%emt 0:00:00]} a6 {[%emt 0:00:05]} 6. a4 {[%emt 0:00:18]} e5 {[%emt 0:00:54]} 7. Nf3 {[%emt 0:00:08]} Be7 {[%emt 0:00:34]} 8. Bc4 {[%emt 0:11:00]} O-O {[%emt 0:02:27]} 9. Qe2 {[%emt 0:03:11]} Nc6 {[%emt 0:03:30]} 10. Be3 {[%emt 0:03:31]} Be6 {[%emt 0:17:29]} 11. Nd5 {[%emt 0:06:25]} Rc8 {[%emt 0:03:56]} 12. Bb6 {[%emt 0:15:35]} Qd7 {[%emt 0:04:10]} 13. Ra3 {[%emt 0:04:12]} Bxd5 {[%emt 0:03:23]} 14. exd5 {[%emt 0:01:22]} Nb4 {[%emt 0:00:15]} 15. Ba5 {[%emt 0:14:13]} Nfxd5 {[%emt 0:13:43]} 16. O-O {[%emt 0:15:05]} Nf4 {[%emt 0:02:23]} 17. Qd2 {[%emt 0:00:06]} Qg4 {[%emt 0:00:37]} 18. Ne1 {[%emt 0:01:23]} Rxc4 {[%emt 0:00:14]} 19. Bxb4 {[%emt 0:08:29]} Rxb4 {[%emt 0:02:01]} 20. f3 {[%emt 0:01:16]} 0-1

[Event "Gideon Japhet ACP Open 2018"]
[Site "Jerusalem"]
[Date "2018.07.04"]
[Round "5"]
[White "Gleizer, Mark"]
[Black "Veinberg, Nimrod"]
[Result "0-1"]
[ECO "A45"]
[WhiteElo "2161"]
[BlackElo "2390"]
[Annotator "NA"]
[PlyCount "86"]
[EventDate "2018.07.01"]
[EventType "swiss"]
[EventCountry "ISR"]
[SourceTitle "playchess.com"]
[Source "ChessBase"]
[SourceQuality "1"]
[TimeControl "40/5400+30:1800+30"]

1. d4 {[%emt 0:00:00]} Nf6 {[%emt 0:00:00]} 2. c3 {[%emt 0:01:06]} d5 {[%emt 0:00:00]} 3. Bg5 {[%emt 0:00:06]} Ne4 {[%emt 0:01:53]} 4. Bf4 {[%emt 0:00:18]} c5 {[%emt 0:00:16]} 5. e3 {[%emt 0:04:41]} Qb6 {[%emt 0:00:19]} 6. Qb3 {[%emt 0:00:54]} c4 {[%emt 0:00:47]} 7. Qxb6 {[%emt 0:00:49]} axb6 {[%emt 0:00:03]} 8. f3 {[%emt 0:00:36]} Nf6 {[%emt 0:00:15]} 9. e4 {[%emt 0:03:19]} e6 {[%emt 0:00:44]} 10. Nd2 {[%emt 0:05:18]} b5 {[%emt 0:00:23]} 11. Bxb8 {[%emt 0:03:24]} Rxb8 {[%emt 0:00:18]} 12. e5 {[%emt 0:00:53]} Nd7 {[%emt 0:00:12]} 13. a3 {[%emt 0:00:21]} Nb6 {[%emt 0:07:33]} 14. Kd1 {[%emt 0:00:47]} Ra8 {[%emt 0:00:43]} 15. Rb1 {[%emt 0:01:13]} Bd7 {[%emt 0:00:16]} 16. Ne2 {[%emt 0:03:20]} Kd8 {[%emt 0:00:53]} 17. f4 {[%emt 0:01:12]} f6 {[%emt 0:00:15]} 18. Nf3 {[%emt 0:01:18]} Be8 {[%emt 0:00:33]} 19. exf6 {[%emt 0:03:13]} gxf6 {[%emt 0:00:48]} 20. f5 {[%emt 0:00:27]} Bd6 {[%emt 0:02:06]} 21. g3 {[%emt 0:13:14]} e5 {[%emt 0:07:17]} 22. Bh3 {[%emt 0:01:14]} Kc7 {[%emt 0:00:24]} 23. Ne1 {[%emt 0:02:43]} Rg8 {[%emt 0:02:49]} 24. Rg1 {[%emt 0:00:39]} Rg5 {[%emt 0:02:20]} 25. Nf3 {[%emt 0:01:46]} Rg7 {[%emt 0:00:37]} 26. Kd2 {[%emt 0:03:41]} Na4 {[%emt 0:00:48]} 27. Kc2 {[%emt 0:03:18]} Bd7 {[%emt 0:01:55]} 28. Nh4 {[%emt 0:01:06]} Rg5 {[%emt 0:06:19]} 29. Rbf1 {[%emt 0:01:41]} Nb6 {[%emt 0:04:51]} 30. Rf2 {[%emt 0:05:48]} Rf8 {[%emt 0:01:31]} 31. Bf1 {[%emt 0:02:06]} Nc8 {[%emt 0:01:02]} 32. g4 {[%emt 0:01:28]} Rfg8 {[%emt 0:14:32]} 33. h3 {[%emt 0:00:27]} h5 {[%emt 0:00:26]} 34. Nf3 {[%emt 0:07:57]} R5g7 {[%emt 0:00:15]} 35. Rfg2 {[%emt 0:01:04]} hxg4 {[%emt 0:00:13]} 36. hxg4 {[%emt 0:00:52]} Rxg4 {[%emt 0:00:12]} 37. Nh4 {[%emt 0:02:00]} Rxg2 {[%emt 0:02:29]} 38. Rxg2 {[%emt 0:00:11]} Rh8 {[%emt 0:00:22]} 39. Rg4 {[%emt 0:00:36]} Ne7 {[%emt 0:00:14]} 40. Kd2 {[%emt 0:05:27]} Nxf5 {[%emt 0:03:36]} 41. Nxf5 {[%emt 0:30:11]} Bxf5 {[%emt 0:30:04]} 42. Rg7+ {[%emt 0:00:36]} Kc6 {[%emt 0:01:27]} 43. Bg2 {[%emt 0:01:10]} Rh7 {[%emt 0:00:56]} 0-1

[Event "Gideon Japhet ACP Open 2018"]
[Site "Jerusalem"]
[Date "2018.07.04"]
[Round "5"]
[White "Berenboym, Igor"]
[Black "Golberg, Igor"]
[Result "1/2-1/2"]
[ECO "C07"]
[WhiteElo "2116"]
[BlackElo "2132"]
[Annotator "NA"]
[PlyCount "64"]
[EventDate "2018.07.01"]
[EventType "swiss"]
[EventCountry "ISR"]
[SourceTitle "playchess.com"]
[Source "ChessBase"]
[SourceQuality "1"]
[TimeControl "40/5400+30:1800+30"]

1. e4 {[%emt 0:00:00]} e6 {[%emt 0:01:02]} 2. d4 {[%emt 0:00:21]} d5 {[%emt 0:00:02]} 3. Nd2 {[%emt 0:00:17]} c5 {[%emt 0:00:07]} 4. exd5 {[%emt 0:00:24]} Qxd5 {[%emt 0:00:16]} 5. Ngf3 {[%emt 0:00:10]} cxd4 {[%emt 0:00:09]} 6. Bc4 {[%emt 0:00:14]} Qd7 {[%emt 0:00:04]} 7. Nb3 {[%emt 0:00:59]} Nc6 {[%emt 0:00:14]} 8. Nbxd4 {[%emt 0:01:36]} Nxd4 {[%emt 0:00:19]} 9. Nxd4 {[%emt 0:01:29]} Qc7 {[%emt 0:00:17]} 10. Qe2 {[%emt 0:04:30]} a6 {[%emt 0:00:16]} 11. O-O {[%emt 0:02:56]} Bd6 {[%emt 0:01:02]} 12. Re1 {[%emt 0:12:30]} Ne7 {[%emt 0:00:18]} 13. Bg5 {[%emt 0:02:48]} Bxh2+ {[%emt 0:09:43]} 14. Kh1 {[%emt 0:01:52]} Bf4 {[%emt 0:00:02]} 15. Bxf4 {[%emt 0:21:39]} Qxf4 {[%emt 0:00:08]} 16. Rad1 {[%emt 0:00:05]} O-O {[%emt 0:01:03]} 17. g3 {[%emt 0:02:02]} Qc7 {[%emt 0:01:37]} 18. Kg2 {[%emt 0:04:23]} b5 {[%emt 0:00:08]} 19. Bd3 {[%emt 0:00:07]} Bb7+ {[%emt 0:00:12]} 20. f3 {[%emt 0:00:45]} g6 {[%emt 0:06:56]} 21. Qe3 {[%emt 0:04:16]} Nf5 {[%emt 0:04:02]} 22. Nxf5 {[%emt 0:05:49]} exf5 {[%emt 0:00:02]} 23. Bxf5 {[%emt 0:00:14]} Rad8 {[%emt 0:05:00]} 24. Rxd8 {[%emt 0:02:04]} Rxd8 {[%emt 0:00:02]} 25. Bd3 {[%emt 0:00:32]} Bd5 {[%emt 0:02:51]} 26. a3 {[%emt 0:05:04]} Qc6 {[%emt 0:00:27]} 27. Re2 {[%emt 0:00:26]} Qf6 {[%emt 0:00:46]} 28. b3 {[%emt 0:03:41]} Kg7 {[%emt 0:04:45]} 29. Be4 {[%emt 0:03:57]} Bxe4 {[%emt 0:02:03]} 30. Qxe4 {[%emt 0:00:14]} Rd4 {[%emt 0:02:31]} 31. Qe3 {[%emt 0:01:49]} Qd6 {[%emt 0:01:53]} 32. Qc3 {[%emt 0:01:32]} Kf8 {[%emt 0:03:32]} 1/2-1/2

[Event "Gideon Japhet ACP Open 2018"]
[Site "Jerusalem"]
[Date "2018.07.04"]
[Round "5"]
[White "Gorodetzky, Matan"]
[Black "Zanan, Evgeny"]
[Result "0-1"]
[ECO "E61"]
[WhiteElo "2060"]
[BlackElo "2497"]
[Annotator "ChessBase"]
[PlyCount "64"]
[EventDate "2018.07.01"]
[EventType "swiss"]
[EventCountry "ISR"]
[SourceTitle "playchess.com"]
[Source "ChessBase"]
[SourceQuality "1"]
[TimeControl "40/5400+30:1800+30"]

1. d4 {[%emt 0:00:11]} Nf6 {[%emt 0:00:00]} 2. c4 {[%emt 0:00:44]} g6 {[%emt 0:00:48]} 3. Nc3 {[%emt 0:00:20]} Bg7 {[%emt 0:00:06]} 4. Nf3 {[%emt 0:00:45]} O-O {[%emt 0:01:32]} 5. e3 {[%emt 0:03:39]} d6 {[%emt 0:04:14]} 6. Be2 {[%emt 0:00:50]} Nc6 {[%emt 0:05:10]} 7. O-O {[%emt 0:01:10]} e5 {[%emt 0:01:41]} 8. Re1 {[%emt 0:08:34]} h6 {[%emt 0:11:21]} 9. h3 {[%emt 0:05:48]} Re8 {[%emt 0:05:23]} 10. Bf1 {[%emt 0:16:14]} Nd7 {[%emt 0:06:21]} 11. dxe5 {[%emt 0:05:31]} dxe5 {[%emt 0:11:35]} 12. e4 {[%emt 0:11:57]} Nd4 {[%emt 0:04:11]} 13. Be3 {[%emt 0:05:32]} Nc5 {[%emt 0:02:45]} 14. Nb5 {[%emt 0:02:57]} Nce6 {[%emt 0:01:37]} 15. Bxd4 {[%emt 0:01:12]} exd4 {[%emt 0:04:04]} 16. e5 {[%emt 0:00:50]} a6 {[%emt 0:01:39]} 17. Nbxd4 {[%emt 0:02:46]} Nxd4 {[%emt 0:01:06]} 18. Nxd4 {[%emt 0:03:55]} Bxe5 {[%emt 0:08:45]} 19. Qd2 {[%emt 0:08:16]} c5 {[%emt 0:04:13]} 20. Nf3 {[%emt 0:01:19]} Qxd2 {[%emt 0:00:05]} 21. Nxd2 {[%emt 0:00:01]} Bd7 {[%emt 0:00:19]} 22. Ne4 {[%emt 0:04:33]} Bxb2 {[%emt 0:04:20]} 23. Rad1 {[%emt 0:00:43]} Bd4 {[%emt 0:01:09]} 24. Nd6 {[%emt 0:00:06]} Rxe1 {[%emt 0:00:28]} 25. Rxe1 {[%emt 0:00:03]} Bc6 {[%emt 0:01:28]} 26. Re7 {[%emt 0:06:11]} Bf6 {[%emt 0:01:00]} 27. Rc7 {[%emt 0:00:07]} Be5 {[%emt 0:00:28]} 28. Rc8+ {[%emt 0:00:02]} Rxc8 {[%emt 0:00:06]} 29. Nxc8 {[%emt 0:00:05]} Kf8 {[%emt 0:01:31]} 30. Bd3 {[%emt 0:00:29]} Bc7 {[%emt 0:00:51]} 31. Na7 {[%emt 0:00:13]} Bd7 {[%emt 0:00:11]} 32. Be4 {[%emt 0:00:45]} Bb8 {[%emt 0:00:14]} 0-1

[Event "Gideon Japhet ACP Open 2018"]
[Site "Jerusalem"]
[Date "2018.07.04"]
[Round "5"]
[White "Aizenberg, Benny"]
[Black "Parkhov, Yair"]
[Result "0-1"]
[ECO "B90"]
[WhiteElo "1887"]
[BlackElo "2364"]
[Annotator "NA"]
[PlyCount "76"]
[EventDate "2018.07.01"]
[EventType "swiss"]
[EventCountry "ISR"]
[SourceTitle "playchess.com"]
[Source "ChessBase"]
[SourceQuality "1"]
[TimeControl "40/5400+30:1800+30"]

1. e4 {[%emt 0:00:00]} c5 {[%emt 0:00:00]} 2. Nf3 {[%emt 0:00:00]} d6 {[%emt 0:00:00]} 3. d4 {[%emt 0:00:00]} cxd4 {[%emt 0:00:00]} 4. Nxd4 {[%emt 0:00:00]} Nf6 {[%emt 0:00:00]} 5. Nc3 {[%emt 0:00:00]} a6 {[%emt 0:00:00]} 6. h3 {[%emt 0:00:00]} b5 {[%emt 0:00:05]} 7. g4 {[%emt 0:00:03]} Bb7 {[%emt 0:00:10]} 8. Bg2 {[%emt 0:00:04]} Nc6 {[%emt 0:00:06]} 9. O-O {[%emt 0:00:59]} Nxd4 {[%emt 0:00:25]} 10. Qxd4 {[%emt 0:00:05]} e5 {[%emt 0:00:07]} 11. Qd3 {[%emt 0:01:11]} Be7 {[%emt 0:00:48]} 12. Be3 {[%emt 0:03:51]} b4 {[%emt 0:00:49]} 13. Ne2 {[%emt 0:04:07]} d5 {[%emt 0:01:53]} 14. exd5 {[%emt 0:01:52]} Bxd5 {[%emt 0:09:13]} 15. Ng3 {[%emt 0:05:00]} Bxg2 {[%emt 0:11:06]} 16. Kxg2 {[%emt 0:00:04]} Qxd3 {[%emt 0:22:32]} 17. cxd3 {[%emt 0:00:09]} h5 {[%emt 0:00:11]} 18. f3 {[%emt 0:00:40]} Nd5 {[%emt 0:03:43]} 19. Bd2 {[%emt 0:00:07]} hxg4 {[%emt 0:01:46]} 20. fxg4 {[%emt 0:00:50]} f6 {[%emt 0:02:43]} 21. Rae1 {[%emt 0:01:02]} Rc8 {[%emt 0:08:11]} 22. Rc1 {[%emt 0:00:31]} Kf7 {[%emt 0:00:44]} 23. Rc4 {[%emt 0:01:04]} Rhd8 {[%emt 0:07:20]} 24. Nf5 {[%emt 0:05:27]} Rxc4 {[%emt 0:01:46]} 25. dxc4 {[%emt 0:00:29]} Nb6 {[%emt 0:00:06]} 26. Be1 {[%emt 0:00:40]} Nxc4 {[%emt 0:00:49]} 27. b3 {[%emt 0:00:04]} g6 {[%emt 0:03:31]} 28. bxc4 {[%emt 0:04:04]} gxf5 {[%emt 0:00:06]} 29. Rxf5 {[%emt 0:00:12]} Rc8 {[%emt 0:00:45]} 30. g5 {[%emt 0:08:56]} Ke6 {[%emt 0:01:24]} 31. gxf6 {[%emt 0:00:26]} Kxf5 {[%emt 0:00:57]} 32. fxe7 {[%emt 0:00:08]} a5 {[%emt 0:00:45]} 33. a3 {[%emt 0:08:08]} bxa3 {[%emt 0:00:17]} 34. Bxa5 {[%emt 0:00:02]} Ke6 {[%emt 0:00:10]} 35. h4 {[%emt 0:05:04]} a2 {[%emt 0:03:04]} 36. Bc3 {[%emt 0:00:09]} Kxe7 {[%emt 0:00:26]} 37. Bxe5 {[%emt 0:03:25]} Rxc4 {[%emt 0:00:17]} 38. h5 {[%emt 0:00:05]} Rc5 {[%emt 0:00:13]} 0-1

[Event "Gideon Japhet ACP Open 2018"]
[Site "Jerusalem"]
[Date "2018.07.04"]
[Round "5"]
[White "Vagman, Roy"]
[Black "Slonimskij, Arkadij"]
[Result "1-0"]
[ECO "B01"]
[WhiteElo "1551"]
[BlackElo "2114"]
[Annotator "NA"]
[PlyCount "65"]
[EventDate "2018.07.01"]
[EventType "swiss"]
[EventCountry "ISR"]
[SourceTitle "playchess.com"]
[Source "ChessBase"]
[SourceQuality "1"]
[TimeControl "40/5400+30:1800+30"]

1. e4 {[%emt 0:00:00]} d5 {[%emt 0:00:00]} 2. exd5 {[%emt 0:00:34]} Nf6 {[%emt 0:00:00]} 3. Nf3 {[%emt 0:00:41]} Nxd5 {[%emt 0:00:01]} 4. d4 {[%emt 0:00:47]} Bg4 {[%emt 0:00:33]} 5. Bd3 {[%emt 0:01:20]} Nc6 {[%emt 0:00:52]} 6. c3 {[%emt 0:01:01]} e6 {[%emt 0:00:35]} 7. O-O {[%emt 0:02:46]} Bd6 {[%emt 0:06:32]} 8. Re1 {[%emt 0:05:24]} Nf4 {[%emt 0:04:34]} 9. Bxf4 {[%emt 0:05:56]} Bxf4 {[%emt 0:00:09]} 10. Re4 {[%emt 0:01:43]} Qf6 {[%emt 0:19:42]} 11. d5 {[%emt 0:00:59]} Bxf3 {[%emt 0:04:43]} 12. Qxf3 {[%emt 0:10:16]} Ne5 {[%emt 0:00:16]} 13. Qxf4 {[%emt 0:01:01]} Qxf4 {[%emt 0:00:51]} 14. Rxf4 {[%emt 0:01:36]} Nxd3 {[%emt 0:00:14]} 15. Rd4 {[%emt 0:00:06]} Nc5 {[%emt 0:02:11]} 16. Rc4 {[%emt 0:01:26]} b6 {[%emt 0:00:20]} 17. b4 {[%emt 0:00:05]} exd5 {[%emt 0:00:18]} 18. Rd4 {[%emt 0:00:06]} Ne4 {[%emt 0:02:29]} 19. Rxd5 {[%emt 0:00:17]} Rd8 {[%emt 0:00:20]} 20. Rxd8+ {[%emt 0:00:26]} Kxd8 {[%emt 0:00:02]} 21. f3 {[%emt 0:00:11]} Nd6 {[%emt 0:00:20]} 22. Nd2 {[%emt 0:04:37]} Re8 {[%emt 0:03:58]} 23. Kf2 {[%emt 0:03:12]} Nb5 {[%emt 0:00:48]} 24. Rc1 {[%emt 0:01:41]} Kd7 {[%emt 0:00:27]} 25. a4 {[%emt 0:01:07]} Nd6 {[%emt 0:00:16]} 26. c4 {[%emt 0:01:19]} c5 {[%emt 0:01:19]} 27. b5 {[%emt 0:05:16]} a6 {[%emt 0:04:30]} 28. Ra1 {[%emt 0:02:00]} Ra8 {[%emt 0:00:16]} 29. bxa6 {[%emt 0:02:33]} Rxa6 {[%emt 0:00:10]} 30. g4 {[%emt 0:00:29]} b5 {[%emt 0:04:05]} 31. Nb3 {[%emt 0:00:30]} Rb6 32. cxb5 {[%emt 0:06:13]} Nb7 {[%emt 0:06:05]} 33. a5 {[%emt 0:01:37]} 1-0

[Event "Gideon Japhet ACP Open 2018"]
[Site "Jerusalem"]
[Date "2018.07.05"]
[Round "6"]
[White "Boruchovsky, Avital"]
[Black "Kantsler, Boris"]
[Result "1-0"]
[ECO "B41"]
[WhiteElo "2558"]
[BlackElo "2422"]
[Annotator "ChessBase"]
[PlyCount "51"]
[EventDate "2018.07.01"]
[EventType "swiss"]
[EventCountry "ISR"]
[SourceTitle "playchess.com"]
[Source "ChessBase"]
[SourceQuality "1"]
[TimeControl "40/5400+30:1800+30"]

1. e4 {[%emt 0:00:00]} c5 {[%emt 0:00:00]} 2. Nf3 {[%emt 0:00:00]} e6 {[%emt 0:00:02]} 3. d4 {[%emt 0:00:00]} cxd4 {[%emt 0:00:05]} 4. Nxd4 {[%emt 0:00:00]} a6 {[%emt 0:00:03]} 5. c4 {[%emt 0:00:04]} Nf6 {[%emt 0:00:14]} 6. Nc3 {[%emt 0:00:06]} Qc7 {[%emt 0:00:33]} 7. Be2 {[%emt 0:01:11]} Bb4 {[%emt 0:00:37]} 8. Nc2 {[%emt 0:00:49]} Be7 {[%emt 0:00:10]} 9. O-O {[%emt 0:00:09]} O-O {[%emt 0:00:40]} 10. f4 {[%emt 0:00:06]} d6 {[%emt 0:00:24]} 11. g4 {[%emt 0:00:06]} Nc6 {[%emt 0:07:13]} 12. g5 {[%emt 0:00:47]} Nd7 {[%emt 0:00:03]} 13. Be3 {[%emt 0:01:30]} Rd8 {[%emt 0:05:39]} 14. Rc1 {[%emt 0:02:00]} Bf8 {[%emt 0:06:32]} 15. Qe1 {[%emt 0:04:28]} b6 {[%emt 0:03:38]} 16. Qh4 {[%emt 0:03:23]} g6 {[%emt 0:01:13]} 17. Nd4 {[%emt 0:01:18]} Nxd4 {[%emt 0:07:20]} 18. Bxd4 {[%emt 0:00:02]} Bb7 {[%emt 0:00:33]} 19. Nd5 {[%emt 0:02:41]} exd5 {[%emt 0:20:30]} 20. cxd5 {[%emt 0:00:33]} Nc5 {[%emt 0:04:41]} 21. Rc3 {[%emt 0:04:56]} Bg7 {[%emt 0:00:17]} 22. Bf6 {[%emt 0:00:36]} Re8 {[%emt 0:12:35]} 23. Rh3 {[%emt 0:00:47]} h5 {[%emt 0:00:24]} 24. gxh6 {[%emt 0:01:06]} Nxe4 {[%emt 0:00:40]} 25. hxg7 {[%emt 0:00:07]} Qc5+ {[%emt 0:00:05]} 26. Kg2 {[%emt 0:00:04]} 1-0